bitfinex-derivatives/quotes_SOLF0:USTF0_20250312
["timestamp","ask_amount","ask_price","bid_price","bid_amount"]
[1741799777046,70.296983,125.34,125.31,0.05682561]
[1741799777346,7.981,125.32,125.31,0.05682561]
[1741799777735,36.66482579,125.32,125.27,239.34]
[1741799777941,7.9851,125.26,125.23,125.76236803]
[1741799778246,36.66482579,125.3,125.23,117.77596803]
[1741799778448,7.9851,125.26,125.23,125.76226803]
[1741799778645,39.80012579,125.3,125.22,65.70071855]
[1741799778836,36.66482579,125.28,125.22,32.12071855]
[1741799779040,7.9867,125.23,125.22,32.12071855]
[1741799780247,0.05192836,125.24,125.22,32.12071855]
[1741799781744,0.05192836,125.24,125.21,0.05295825]
[1741799783746,0.05192836,125.24,125.21,8.04035825]
[1741799784145,0.05192836,125.24,125.21,0.05295825]
[1741799785347,8.03852836,125.24,125.21,0.05295825]
[1741799785540,0.05192836,125.24,125.21,0.05295825]
[1741799785737,0.05192836,125.24,125.22,7.987]
[1741799785938,0.05192836,125.24,125.21,0.05295825]
[1741799786246,7.987,125.23,125.21,0.05295825]
[1741799786445,0.05192836,125.24,125.21,0.05295825]
[1741799786643,2.836e-05,125.24,125.22,33.6]
[1741799786840,6.5249,125.32,125.22,70.26482579]
[1741799787043,3.0732,125.34,125.26,36.66482579]
[1741799787238,6.5249,125.37,125.34,7.9793]
[1741799787451,43.18972579,125.37,125.32,33.6]
[1741799787646,43.18972579,125.37,125.31,33.6]
[1741799787846,7.9789,125.36,125.33,0.05182049]
[1741799788145,0.05375874,125.35,125.33,0.05182049]
[1741799790244,0.05375874,125.35,125.34,7.9797]
[1741799790546,0.05375874,125.35,125.33,0.05182049]
[1741799790947,0.05375874,125.35,125.33,8.03182049]
[1741799791146,0.05375874,125.35,125.33,0.05182049]
[1741799791540,0.05375874,125.35,125.34,7.9797]
[1741799791750,0.05375874,125.35,125.34,41.5797]
[1741799793043,0.00043302,125.35,125.34,41.5797]
[1741799793446,21.83,125.39,125.34,33.6]
[1741799793841,21.83,125.39,125.35,3.0724]
[1741799794047,46.05112579,125.49,125.37,36.66482579]
[1741799794251,46.05112579,125.49,125.37,276.12482579]
[1741799794454,46.05112579,125.49,125.38,33.58]
[1741799794751,0.05657824,125.44,125.42,0.05313225]
[1741799794946,7.9718,125.47,125.42,33.63313225]
[1741799795156,0.05978665,125.44,125.43,7.9736]
[1741799795348,9.3863,125.49,125.42,33.63313225]
[1741799795547,0.05867378,125.45,125.42,33.63313225]
[1741799795749,0.05867378,125.45,125.44,7.973]
[1741799797953,0.05867378,125.45,125.42,8.02743225]
[1741799798151,0.05867378,125.45,125.42,41.58743225]
[1741799798346,0.05867378,125.45,125.42,33.61313225]
[1741799798553,0.05867378,125.45,125.42,41.58763225]
[1741799799051,0.05867378,125.45,125.42,33.61313225]
[1741799799557,0.05867378,125.45,125.42,0.05313225]
[1741799799753,0.05867378,125.45,125.43,33.56]
[1741799801554,0.05867378,125.45,125.44,7.9733]
[1741799801756,0.05867378,125.45,125.43,33.56]
[1741799802347,8.03177378,125.45,125.43,33.56]
[1741799802553,0.05867378,125.45,125.43,33.56]
[1741799804156,0.05867378,125.45,125.44,7.9733]
[1741799805067,3.59919,125.52,125.44,7.98]
[1741799805359,3.59919,125.52,125.43,33.56]
[1741799805860,7.9699,125.5,125.43,33.56]
[1741799806261,3.59919,125.52,125.45,0.05994857]
[1741799806463,7.969,125.51,125.47,7.971]
[1741799806662,3.59919,125.52,125.46,33.56]
[1741799806864,3.59919,125.52,125.48,0.05798283]
[1741799807565,7.9692,125.51,125.48,0.05798283]
[1741799807863,3.59919,125.52,125.48,0.05798283]
[1741799808567,7.9695,125.51,125.48,0.05798283]
[1741799808862,3.59919,125.52,125.48,0.05798283]
[1741799809063,3.59919,125.52,125.49,7.97]
[1741799809367,3.59919,125.52,125.48,0.05798283]
[1741799809665,11.56749,125.52,125.48,0.05798283]
[1741799810065,11.56749,125.52,125.48,8.02848283]
[1741799810562,3.59919,125.52,125.48,0.05798283]
[1741799810771,3.59919,125.52,125.49,7.9697]
[1741799811261,3.59919,125.52,125.49,7.97]
[1741799811767,3.59919,125.52,125.48,0.05798283]
[1741799811964,3.59919,125.52,125.5,7.9692]
[1741799812566,0.30439,125.52,125.48,0.05798283]
[1741799812770,0.30439,125.52,125.49,33.54]
[1741799813565,52.15240048,125.58,125.49,33.54]
[1741799813566,19.2,125.58,125.5,32.95240048]
[1741799813772,19.2,125.58,125.51,3.2458]
[1741799813964,19.2,125.58,125.53,0.0530835]
[1741799814167,19.2,125.58,125.53,8.0203835]
[1741799814366,19.2,125.58,125.53,0.0530835]
[1741799814666,32.95240048,125.6,125.53,0.0530835]
[1741799814869,7.9655,125.57,125.53,8.0203835]
[1741799815070,32.95240048,125.6,125.53,0.0530835]
[1741799815270,7.9647,125.58,125.54,7.9667]
[1741799815671,7.9647,125.58,125.55,0.0541251]
[1741799815970,14.1662,125.61,125.56,7.9656]
[1741799816166,6.2031,125.61,125.55,33.5941251]
[1741799816465,6.2031,125.61,125.55,0.0541251]
[1741799816871,0.3365,125.59,125.55,0.0541251]
[1741799817476,0.3365,125.59,125.57,7.9647]
[1741799817975,0.3365,125.59,125.58,7.9644]
[1741799818367,0.3365,125.59,125.55,33.5941251]
[1741799819169,0.3365,125.59,125.58,7.9644]
[1741799819363,0.3365,125.59,125.55,33.5941251]
[1741799819574,0.3365,125.59,125.58,7.9644]
[1741799820774,0.3365,125.59,125.55,33.5941251]
[1741799820775,0.3365,125.59,125.55,0.0541251]
[1741799821766,33.8565,125.59,125.55,0.0541251]
[1741799822469,32.95240048,125.57,125.45,239.0]
[1741799822664,32.95240048,125.54,125.45,272.52]
[1741799822871,6.3561,125.53,125.45,272.52]
[1741799823276,6.3561,125.53,125.5,7.9695]
[1741799823473,6.3561,125.53,125.46,32.95240048]
[1741799823675,6.40767667,125.53,125.5,0.05936103]
[1741799824070,6.41567891,125.53,125.5,0.05936103]
[1741799824472,14.38357891,125.53,125.5,0.05936103]
[1741799824673,6.41567891,125.53,125.5,0.05936103]
[1741799824870,0.05957891,125.53,125.5,0.05936103]
[1741799825174,0.05957891,125.53,125.51,33.52]
[1741799825367,0.3365,125.59,125.52,65.90480096]
[1741799825571,0.3365,125.59,125.58,7.9644]
[1741799825773,6.3513,125.66,125.58,33.92]
[1741799825975,3.3125,125.66,125.58,34.04]
[1741799826176,11.0002,125.63,125.58,42.0042]
[1741799826377,11.0002,125.63,125.59,0.0600131]
[1741799826573,3.0388,125.63,125.59,0.0600131]
[1741799826779,3.3022,125.62,125.55,33.98]
[1741799827280,7.9632,125.6,125.55,33.98]
[1741799827479,3.3022,125.62,125.55,33.98]
[1741799827677,36.25460048,125.62,125.55,33.98]
[1741799827871,7.9648,125.58,125.57,0.05980303]
[1741799828280,3.3294,125.59,125.57,0.05980303]
[1741799829475,7.9665,125.55,125.53,239.02]
[1741799829783,32.95240048,125.58,125.49,65.91117557]
[1741799830176,3.3294,125.59,125.49,65.91117557]
[1741799830378,3.3294,125.59,125.5,32.95240048]
[1741799830578,0.05920063,125.55,125.54,7.9666]
[1741799830780,3.3294,125.59,125.54,41.9266]
[1741799831079,0.05457654,125.56,125.54,33.96]
[1741799832877,7.967,125.54,125.53,0.05192972]
[1741799834178,7.969,125.51,125.48,65.89117557]
[1741799834779,3.0866,125.55,125.48,65.89117557]
[1741799834981,36.03900048,125.55,125.48,31.97117557]
[1741799835178,32.95240048,125.53,125.48,31.97117557]
[1741799835380,3.1177,125.52,125.5,0.0589202]
[1741799835981,7.9689,125.51,125.5,0.0589202]
[1741799836177,3.1177,125.52,125.5,0.0589202]
[1741799836790,0.05690108,125.53,125.5,0.0589202]
[1741799836979,7.9686,125.52,125.5,0.0589202]
[1741799837185,0.05690108,125.53,125.5,0.0589202]
[1741799837483,0.05690108,125.53,125.5,8.0283202]
[1741799837690,0.05690108,125.53,125.5,0.0589202]
[1741799839090,7.9689,125.51,125.5,0.0589202]
[1741799839387,0.05690108,125.53,125.5,0.0589202]
[1741799839785,33.9,125.52,125.44,39.94427557]
[1741799839988,32.95240048,125.51,125.44,39.94427557]
[1741799840188,32.95240048,125.51,125.44,7.9731]
[1741799840491,7.9708,125.48,125.43,390.10764375]
[1741799840692,32.95240048,125.51,125.43,390.10764375]
[1741799840894,0.05191032,125.48,125.46,0.05109537]
[1741799841395,0.05191032,125.48,125.43,364.18154375]
[1741799841588,40.46231032,125.48,125.43,356.20764375]
[1741799841788,32.95240048,125.47,125.43,356.20764375]
[1741799841991,7.9733,125.44,125.43,117.22764375]
[1741799842288,32.95240048,125.47,125.41,213.14117047]
[1741799842492,7.9744,125.43,125.39,73.80727557]
[1741799842689,33.82,125.44,125.39,31.97117557]
[1741799842888,0.06100008,125.42,125.4,0.05875788]
[1741799843090,32.95240048,125.41,125.38,41.70927168]
[1741799843596,7.9759,125.4,125.38,41.70927168]
[1741799843792,32.95240048,125.41,125.38,41.70927168]
[1741799844090,7.9759,125.4,125.38,41.70927168]
[1741799844290,32.95240048,125.41,125.38,41.76775695]
[1741799844497,32.95240048,125.39,125.35,134.50017329]
[1741799844693,32.95240048,125.39,125.32,75.44927168]
[1741799844894,7.9761,125.4,125.35,7.9785]
[1741799845085,66.69240048,125.41,125.32,75.44927168]
[1741799845285,33.9,125.44,125.4,7.9758]
[1741799845489,33.9,125.44,125.37,33.92]
[1741799845789,7.9756,125.41,125.39,0.06031979]
[1741799846099,0.0607684,125.42,125.39,0.06031979]
[1741799846396,0.0607684,125.42,125.39,8.03671979]
[1741799846597,0.0607684,125.42,125.39,0.06031979]
[1741799847891,7.9759,125.4,125.39,0.06031979]
[1741799848693,7.9756,125.41,125.39,0.06031979]
[1741799848900,0.0607684,125.42,125.39,0.06031979]
[1741799849398,0.0607684,125.42,125.39,8.03641979]
[1741799849595,0.0607684,125.42,125.39,0.06031979]
[1741799849989,0.0607684,125.42,125.39,8.03651979]
[1741799850192,0.0607684,125.42,125.39,0.06031979]
[1741799850993,0.0607684,125.42,125.39,8.03641979]
[1741799851198,0.0607684,125.42,125.39,0.06031979]
[1741799851399,0.0607684,125.42,125.39,33.80031979]
[1741799851598,0.0607684,125.42,125.39,0.06031979]
[1741799851999,7.9752,125.41,125.39,0.06031979]
[1741799852200,0.0607684,125.42,125.39,0.06031979]
[1741799853297,7.9759,125.4,125.39,0.06031979]
[1741799855700,7.9759,125.4,125.39,1.979e-05]
[1741799855903,41.6959,125.4,125.39,1.979e-05]
[1741799856104,32.95240048,125.39,125.33,0.32514]
[1741799856500,7.9784,125.36,125.33,0.32514]
[1741799856701,32.95240048,125.39,125.33,0.32514]
[1741799857105,0.05717254,125.37,125.35,0.05675295]
[1741799857806,7.9787,125.36,125.35,0.05675295]
[1741799859412,7.9784,125.36,125.35,0.05675295]
[1741799865910,0.05717254,125.37,125.35,0.05675295]
[1741799866617,7.9784,125.36,125.35,0.05675295]
[1741799867918,0.05717254,125.37,125.35,0.05675295]
[1741799869114,0.05717254,125.37,125.35,8.03525295]
[1741799869312,0.05717254,125.37,125.35,0.05675295]
[1741799869913,8.03547254,125.37,125.35,0.05675295]
[1741799871320,0.05717254,125.37,125.35,0.05675295]
[1741799871917,0.05717254,125.37,125.35,8.03555295]
[1741799872218,0.05717254,125.37,125.35,0.05675295]
[1741799872520,0.05717254,125.37,125.35,8.03545295]
[1741799872719,0.05717254,125.37,125.35,0.05675295]
[1741799874219,0.05717254,125.37,125.35,8.03545295]
[1741799874419,0.05717254,125.37,125.35,0.05675295]
[1741799875021,7.9784,125.36,125.35,0.05675295]
[1741799876922,8.03527254,125.37,125.35,0.05675295]
[1741799877122,0.05717254,125.37,125.35,0.05675295]
[1741799878224,0.05717254,125.37,125.36,7.9784]
[1741799878622,0.05717254,125.37,125.35,0.05675295]
[1741799878825,8.03507254,125.37,125.35,8.03545295]
[1741799879026,0.05717254,125.37,125.35,0.05675295]
[1741799879426,8.03527254,125.37,125.35,0.05675295]
[1741799879726,0.05717254,125.37,125.35,0.05675295]
[1741799879927,7.9784,125.36,125.35,0.05675295]
[1741799881024,7.9784,125.36,125.31,245.4867]
[1741799881025,7.9818,125.31,125.29,0.34351]
[1741799881226,20.63228885,125.34,125.29,0.34351]
[1741799881615,6.2658,125.35,125.29,0.34351]
[1741799881819,57.40578885,125.36,125.29,0.34351]
[1741799882022,54.21228885,125.36,125.32,7.9809]
[1741799882221,0.05661058,125.34,125.32,7.9809]
[1741799882422,0.05661058,125.34,125.31,0.06086279]
[1741799882624,0.05661058,125.34,125.31,3.36546279]
[1741799883217,0.05661058,125.34,125.33,7.9803]
[1741799883423,0.05661058,125.34,125.32,6.312]
[1741799883823,0.05661058,125.34,125.33,7.9803]
[1741799884427,0.05661058,125.34,125.32,6.312]
[1741799884623,0.05661058,125.34,125.31,0.06086279]
[1741799885433,7.981,125.32,125.31,0.06086279]
[1741799885628,66.581751,125.33,125.29,1e-05]
[1741799885826,7.9822,125.3,125.29,1e-05]
[1741799886228,33.58,125.33,125.29,1e-05]
[1741799886729,33.58,125.33,125.3,0.05681508]
[1741799886928,7.9816,125.31,125.3,0.05681508]
[1741799887828,7.9816,125.31,125.3,1.508e-05]
[1741799888535,8.03630135,125.32,125.3,1.508e-05]
[1741799888930,0.05520135,125.32,125.3,7.98211508]
[1741799889140,0.05520135,125.32,125.3,1.508e-05]
[1741799890537,33.58,125.37,125.3,1.508e-05]
[1741799890833,6.283,125.39,125.29,42.600661]
[1741799891033,6.283,125.39,125.31,33.001751]
[1741799891034,3.0348,125.39,125.31,33.001751]
[1741799891331,194.76241832,125.42,125.33,33.001751]
[1741799891531,177.80020521,125.42,125.33,33.001751]
[1741799891731,0.05334411,125.38,125.35,0.06137007]
[1741799892734,0.05334411,125.38,125.36,7.9781]
[1741799892940,0.05334411,125.38,125.35,0.06137007]
[1741799893540,0.05334411,125.38,125.35,33.64137007]
[1741799893834,19.43,125.4,125.39,7.9765]
[1741799894927,72.98432629,125.5,125.38,33.58]
[1741799894928,36.036851,125.49,125.38,33.58]
[1741799895127,39.9198,125.48,125.39,33.001751]
[1741799895334,6.3398,125.48,125.39,33.001751]
[1741799895541,7.9718,125.47,125.43,7.9733]
[1741799895839,3.0351,125.49,125.41,66.581751]
[1741799896041,55.87243406,125.5,125.42,3.0729]
[1741799896234,55.87243406,125.5,125.44,0.05214191]
[1741799896235,0.05804088,125.46,125.44,0.05214191]
[1741799896435,0.05804088,125.46,125.45,33.58]
[1741799898334,0.05804088,125.46,125.44,0.05214191]
[1741799898542,7.9727,125.45,125.44,0.05214191]
[1741799898730,0.05804088,125.46,125.44,0.05214191]
[1741799899637,0.05804088,125.46,125.45,7.9727]
[1741799900035,33.001751,125.56,125.45,40.981751]
[1741799900334,69.895851,125.56,125.46,3.1746]
[1741799900641,3.3341,125.56,125.47,33.56]
[1741799901035,3.3341,125.56,125.48,3.2536]
[1741799901236,0.05384512,125.53,125.5,0.05722359]
[1741799901531,36.353551,125.6,125.5,33.61722359]
[1741799901736,39.687651,125.6,125.5,33.56]
[1741799901942,6.6859,125.6,125.51,272.281751]
[1741799902141,3.3341,125.6,125.51,272.281751]
[1741799902340,7.9642,125.59,125.55,7.9663]
[1741799902736,8.01833555,125.58,125.56,0.0524841]
[1741799903139,0.05383555,125.58,125.56,0.0524841]
[1741799904643,8.01863555,125.58,125.56,0.0524841]
[1741799904844,0.05383555,125.58,125.56,0.0524841]
[1741799906846,0.05383555,125.58,125.56,8.0181841]
[1741799907142,0.05383555,125.58,125.56,0.0524841]
[1741799907342,0.05383555,125.58,125.56,8.0177841]
[1741799907643,0.05383555,125.58,125.56,0.0524841]
[1741799907840,3.179,125.63,125.58,7.9641]
[1741799908140,33.001751,125.66,125.57,33.54]
[1741799908340,33.001751,125.7,125.57,66.541751]
[1741799908542,7.9591,125.67,125.59,33.001751]
[1741799908740,3.1139,125.7,125.61,33.001751]
[1741799908940,3.1139,125.7,125.64,7.9604]
[1741799909142,7.9594,125.66,125.65,33.52]
[1741799909343,3.1139,125.7,125.63,33.52]
[1741799909744,36.115651,125.7,125.6,245.5335]
[1741799909944,36.115651,125.7,125.62,41.4819]
[1741799910349,0.05609569,125.67,125.65,0.05304653]
[1741799910847,0.05609569,125.67,125.65,33.57304653]
[1741799911051,39.216451,125.74,125.65,33.57304653]
[1741799911245,72.736451,125.74,125.65,33.52]
[1741799911749,33.001751,125.72,125.65,33.52]
[1741799912248,0.05261753,125.7,125.67,0.05211904]
[1741799912651,7.9586,125.68,125.67,0.05211904]
[1741799918450,0.05261753,125.7,125.67,0.05211904]
[1741799918651,7.9577,125.69,125.67,0.05211904]
[1741799919144,7.9581,125.68,125.67,0.05211904]
[1741799920246,0.05261753,125.7,125.67,0.05211904]
[1741799920648,0.05261753,125.7,125.67,8.01041904]
[1741799920649,8.00941753,125.7,125.67,8.01041904]
[1741799920850,8.00941753,125.7,125.67,0.05211904]
[1741799921355,0.05261753,125.7,125.67,0.05211904]
[1741799922049,7.9578,125.69,125.67,0.05211904]
[1741799922950,7.9581,125.68,125.67,0.05211904]
[1741799923350,0.05261753,125.7,125.67,8.01051904]
[1741799923545,0.05261753,125.7,125.67,0.05211904]
[1741799923949,7.9581,125.68,125.67,0.05211904]
[1741799924150,0.05261753,125.7,125.67,0.05211904]
[1741799924950,7.9581,125.68,125.67,0.05211904]
[1741799925856,7.9607,125.64,125.59,33.48]
[1741799926048,33.001751,125.66,125.6,239.12]
[1741799926252,7.961,125.64,125.6,239.12]
[1741799926453,3.026,125.65,125.6,239.12]
[1741799926647,3.026,125.65,125.6,247.0828]
[1741799926853,7.9623,125.62,125.6,239.12]
[1741799927054,7.9623,125.62,125.61,0.0548678]
[1741799927451,33.001751,125.62,125.54,238.8]
[1741799927652,33.001751,125.6,125.54,238.8]
[1741799928051,7.9655,125.57,125.54,238.8]
[1741799928257,33.001751,125.58,125.54,238.8]
[1741799928556,0.05425531,125.57,125.54,0.05281988]
[1741799928855,0.05425531,125.57,125.55,7.9662]
[1741799929160,0.05425531,125.57,125.54,0.05281988]
[1741799930155,33.001751,125.64,125.54,0.05281988]
[1741799930460,3.1825,125.64,125.54,33.001751]
[1741799930763,7.9621,125.62,125.57,7.9647]
[1741799930957,6.3171,125.64,125.58,33.76]
[1741799931354,0.05572938,125.62,125.6,0.0614841]
[1741799931957,7.9625,125.61,125.6,0.0614841]
[1741799934060,0.05572938,125.62,125.6,0.0614841]
[1741799935764,8.01802938,125.62,125.6,0.0614841]
[1741799936162,0.05572938,125.62,125.6,0.0614841]
[1741799936666,7.9625,125.61,125.6,0.0614841]
[1741799937862,8.01812938,125.62,125.6,0.0614841]
[1741799938063,0.05572938,125.62,125.6,0.0614841]
[1741799938268,0.05572938,125.62,125.61,7.9625]
[1741799939374,3.1618,125.68,125.6,0.0614841]
[1741799939566,3.1618,125.68,125.59,36.8805]
[1741799939766,33.72,125.72,125.6,36.208051]
[1741799939971,3.1618,125.7,125.6,36.208051]
[1741799940477,0.05382854,125.66,125.64,0.06060589]
[1741799940680,0.05382854,125.66,125.65,33.7]
[1741799941183,0.05382854,125.66,125.65,41.66]
[1741799941579,238.88,125.8,125.67,7.9586]
[1741799941779,72.716351,125.74,125.65,33.7]
[1741799941976,72.696351,125.74,125.65,33.7]
[1741799942986,0.05729062,125.71,125.68,0.06014967]
[1741799943176,33.001751,125.7,125.68,0.06014967]
[1741799943382,66.681751,125.7,125.63,238.84]
[1741799943785,66.681751,125.7,125.64,7.9604]
[1741799944285,33.68,125.7,125.63,238.84]
[1741799944474,0.05494227,125.68,125.66,0.0572408]
[1741799945183,8.01334227,125.68,125.66,0.0572408]
[1741799945986,0.05494227,125.68,125.66,0.0572408]
[1741799946384,0.05494227,125.68,125.66,8.0164408]
[1741799946776,0.05494227,125.68,125.66,0.0572408]
[1741799946982,0.05494227,125.68,125.67,7.9587]
[1741799947178,0.05494227,125.68,125.66,0.0572408]
[1741799947388,0.05494227,125.68,125.66,8.0161408]
[1741799947587,0.05494227,125.68,125.66,0.0572408]
[1741799947990,8.01314227,125.68,125.66,0.0572408]
[1741799948192,0.05494227,125.68,125.66,0.0572408]
[1741799948787,0.05494227,125.68,125.66,8.0163408]
[1741799949092,0.05494227,125.68,125.66,0.0572408]
[1741799949893,0.05494227,125.68,125.67,7.9587]
[1741799950092,0.05494227,125.68,125.66,0.0572408]
[1741799950594,0.05494227,125.68,125.67,7.9587]
[1741799950894,0.05494227,125.68,125.66,8.0163408]
[1741799951186,0.05494227,125.68,125.66,0.0572408]
[1741799951587,0.05494227,125.68,125.67,7.9587]
[1741799958404,0.05494227,125.68,125.66,0.0572408]
[1741799958896,0.05494227,125.68,125.66,8.0162408]
[1741799959600,0.05494227,125.68,125.67,7.9587]
[1741799959800,0.05494227,125.68,125.66,0.0572408]
[1741799960202,0.05494227,125.68,125.67,7.9587]
[1741799961201,6.0146,125.74,125.67,20.5196911]
[1741799961503,7.9565,125.71,125.68,33.48]
[1741799962089,7.9569,125.7,125.68,33.48]
[1741799962294,0.05218535,125.71,125.68,33.53460194]
[1741799964503,7.9569,125.7,125.68,41.49240194]
[1741799965102,8.00858535,125.71,125.68,33.53460194]
[1741799965503,0.05218535,125.71,125.68,33.53460194]
[1741799966799,8.00878535,125.71,125.68,33.53460194]
[1741799967000,0.05218535,125.71,125.68,33.53460194]
[1741799967503,0.05218535,125.71,125.7,7.9568]
[1741799968808,0.05218535,125.71,125.69,7.9571]
[1741799969900,0.05218535,125.71,125.68,33.53460194]
[1741799970505,0.05218535,125.71,125.69,7.9571]
[1741799971602,0.05218535,125.71,125.68,33.53460194]
[1741799971809,8.00868535,125.71,125.68,33.53460194]
[1741799972309,8.00868535,125.71,125.69,7.9574]
[1741799972905,8.00868535,125.71,125.68,33.53460194]
[1741799973102,8.00868535,125.71,125.68,41.49230194]
[1741799973305,8.00868535,125.71,125.68,33.53460194]
[1741799973811,8.00868535,125.71,125.69,7.9571]
[1741799974014,7.9569,125.7,125.68,33.53460194]
[1741799974404,0.05218535,125.71,125.68,41.49220194]
[1741799974614,7.9569,125.7,125.68,41.49220194]
[1741799974814,0.05218535,125.71,125.68,41.49220194]
[1741799975010,7.9572,125.7,125.68,41.49220194]
[1741799975215,7.9572,125.7,125.68,33.53460194]
[1741799976010,7.9572,125.7,125.68,0.05460194]
[1741799976216,7.9572,125.7,125.64,3.2326]
[1741799976217,20.5196911,125.7,125.6,20.5196911]
[1741799976418,20.5196911,125.7,125.64,33.46]
[1741799977515,0.05450294,125.68,125.66,0.05517667]
[1741799977815,20.57419404,125.68,125.59,6.3039]
[1741799978115,20.5196911,125.65,125.6,33.46]
[1741799978320,7.9625,125.61,125.6,33.46]
[1741799979116,7.9632,125.6,125.59,0.0506163]
[1741799980510,0.05424232,125.62,125.59,0.0506163]
[1741799981019,7.9632,125.6,125.59,0.0506163]
[1741799982214,23.6753911,125.61,125.52,23.6474911]
[1741799982419,23.6753911,125.61,125.54,33.48]
[1741799982717,23.6753911,125.61,125.52,23.6474911]
[1741799982923,3.1557,125.61,125.53,33.48]
[1741799983227,3.1557,125.61,125.54,7.9666]
[1741799983518,0.05918442,125.58,125.56,0.05117172]
[1741799983924,20.57887552,125.58,125.51,238.76]
[1741799984123,3.1456,125.57,125.51,272.24]
[1741799984321,3.1456,125.57,125.48,247.11592319]
[1741799984625,2.9837,125.56,125.49,20.5196911]
[1741799984818,7.9693,125.51,125.48,41.4505]
[1741799985019,8.02011634,125.51,125.48,41.50093409]
[1741799985218,0.05081634,125.51,125.48,33.53043409]
[1741799985419,0.05081634,125.51,125.49,7.9701]
[1741799985624,0.05081634,125.51,125.48,33.53043409]
[1741799986415,0.05081634,125.51,125.48,0.05043409]
[1741799986622,8.01971634,125.51,125.48,8.02123409]
[1741799986830,0.05081634,125.51,125.48,0.05043409]
[1741799987020,8.01991634,125.51,125.48,0.05043409]
[1741799987224,0.05081634,125.51,125.48,0.05043409]
[1741799988025,0.05081634,125.51,125.49,7.97]
[1741799988427,0.05081634,125.51,125.48,0.05043409]
[1741799989833,8.01971634,125.51,125.48,8.02103409]
[1741799990423,8.01971634,125.51,125.48,0.05043409]
[1741799990825,33.5,125.5,125.39,238.94]
[1741799991033,32.92361868,125.49,125.39,275.4016]
[1741799991234,36.10461868,125.49,125.4,41.4754]
[1741799991431,7.9736,125.44,125.4,41.4754]
[1741799991633,3.181,125.49,125.4,66.42361868]
[1741799992130,0.05076567,125.46,125.44,7.9729]
[1741799992325,0.05076567,125.46,125.43,33.55258888]
[1741799992530,6.31129225,125.45,125.43,33.55258888]
[1741799992835,0.05076567,125.46,125.45,7.9727]
[1741799994033,10.09692393,125.5,125.49,7.9701]
[1741799994335,10.09692393,125.5,125.49,41.4701]
[1741799994529,6.3023294,125.5,125.49,33.5]
[1741799994736,6.3023294,125.5,125.49,41.4701]
[1741799994931,10.09692393,125.53,125.49,66.42361868]
[1741799995136,10.09692393,125.53,125.51,7.9688]
[1741799995532,10.15451559,125.53,125.51,7.9688]
[1741799995731,0.05759166,125.53,125.52,7.9682]
[1741799995932,0.05759166,125.53,125.52,41.4682]
[1741799996132,14.3425,125.59,125.52,33.5]
[1741799996431,14.3425,125.59,125.53,32.92361868]
[1741799996842,3.2849,125.59,125.53,32.92361868]
[1741799997030,9.7305,125.63,125.55,32.92361868]
[1741799997229,9.7305,125.63,125.57,7.9646]
[1741799997433,88.31607975,125.58,125.57,7.9646]
[1741799998239,88.31607975,125.58,125.56,41.4656]
[1741799998433,88.31607975,125.58,125.56,33.55533476]
[1741800000639,88.31607975,125.58,125.56,0.05533476]
[1741800000842,7.9651,125.57,125.56,0.05533476]
[1741800001635,0.05935909,125.59,125.56,0.05533476]
[1741800002734,7.9646,125.58,125.56,0.05533476]
[1741800002943,0.05935909,125.59,125.56,0.05533476]
[1741800003945,7.9651,125.57,125.56,0.05533476]
[1741800004538,7.9647,125.58,125.56,0.05533476]
[1741800004732,0.05935909,125.59,125.56,0.05533476]
[1741800005133,7.9648,125.58,125.56,0.05533476]
[1741800005945,0.05935909,125.59,125.56,0.05533476]
[1741800006144,0.05935909,125.59,125.56,33.55533476]
[1741800006341,0.05935909,125.59,125.58,7.9644]
[1741800006546,8.02345909,125.59,125.56,33.55533476]
[1741800006844,0.05935909,125.59,125.56,33.55533476]
[1741800007242,6.22438171,125.58,125.56,33.55533476]
[1741800007642,0.05935909,125.59,125.56,41.52093476]
[1741800007842,0.05935909,125.59,125.56,33.55533476]
[1741800008042,7.9648,125.58,125.56,33.55533476]
[1741800008244,0.05935909,125.59,125.56,33.55533476]
[1741800008843,6.22705672,125.58,125.56,33.55533476]
[1741800009346,0.05935909,125.59,125.56,33.55533476]
[1741800009846,0.05935909,125.59,125.58,7.9644]
[1741800010546,131.77908144,125.73,125.56,33.55533476]
[1741800010547,18.66214461,125.69,125.57,32.92361868]
[1741800010748,25.01524461,125.69,125.6,32.92361868]